{"text_format":"3","workbook":"xlsx","n_sheets":7,"sheets":["обложка","1","2","3","3.1","4","5"],"not_rendered":{"defined_names":71},"read":"whole","date_system":"1900"}

{"sheet":"обложка","index":0,"n_rows":42,"n_cols":3,"rows_kept":42,"merged":[[0,1,1,2],[11,0,11,2],[12,0,12,2],[27,0,30,2],[32,0,32,1],[37,0,37,2],[41,0,41,2],[42,0,42,2],[43,0,43,2],[44,0,44,2],[45,0,45,2],[46,0,46,2],[47,0,47,2],[48,0,48,2],[49,0,49,2]]}
[null,"Приложение № 1 к Порядку"]
[]
[]
[null,null,"УТВЕРЖДАЮ"]
[]
[null,"Заведующий"]
[null,"_____________Т.П.Лазарева"]
[]
[]
[null,null,"«30» декабря 2016г."]
[]
["План финансово-хозяйственной деятельности №1"]
["на 2017 год "]
[]
["Форма по КФД"]
["Дата","30.12.2016 г."]
[]
[]
["Код по ОКПО",6049311]
[]
[]
["ИНН",6114008484]
["КПП",611401001]
["Код по ОКЕИ"]
[]
[]
["Наименование  муниципального  бюджетного учреждения"]
["муниципальное бюджетное дошкольное образовательное учреждение детский сад  №11 \"Звездочка\" Каменского района Ростовской области"]
[]
[]
[]
[]
["Единица измерения: руб. (с точностью до второго десятичного знака после запятой)"]
[]
["Наименование органа, осуществляющего"]
["функции и полномочия учредителя"]
[]
["отдел образования Администрации Каменского района"]
[]
["Адрес фактического местонахождения"]
["муниципального бюджетного  учреждения"]
["347852, Россия, Ростовская область, Каменский район, п. Молодежный, ул. Достоевского, 14"]

{"sheet":"1","index":1,"n_rows":13,"n_cols":1,"rows_kept":13,"merged":[[1,0,2,1],[5,0,5,1],[6,0,6,1],[8,0,8,1],[9,0,9,1],[11,0,11,1],[12,0,12,1]]}
[]
["1. Сведения о деятельности муниципального бюджетного учреждения "]
[]
[]
[]
["1.1. Цели деятельности  муниципального бюджетного учреждения в соответствии с областными законами, иными нормативными актами и уставом учреждения:"]
["оказание муниципальных услуг в целях обеспечения реализации полномочий органов местного самоуправления Каменского района, предусмотренных п.11 ч.1 ст.15 ФЗ  от 06.10.2003. №131-ФЗ \"Об общих принципах организации местного самоуправления в РФ\", ч.1 ст.9 Закона РФ от 29.12.2012 №273-ФЗ \"Об образовании в РФ\" в сфере общедоступного бесплатного дошкольного образования"]
[]
["1.2. Виды деятельности муниципального бюджетного учреждения, относящиеся к его основным видам деятельности в соответствии с уставом учреждения:"]
["1.Организация предоставления общедоступного бесплатного дошкольного образования 2. Образовательная деятельность по образовательным программам дошкольного образования осуществляестя в группах. Группы могут иметь общеразвивающую компенсирующую, оздоровительную или комбинированную направленность. 3. В МБДОУ детский сад №11 \"Звездочка\" могут быть организованы группы по присмотру и уходу без реализации образовательной программы дошкольного образования в возрасте от 2 месяцев до 7 лет."]
[]
["1.3. Перечень услуг (работ), относящихся в соответствии с уставом к основным видам деятельности учреждения, предоставление которых для физических и юридических лиц осуществляется за плату:"]
["1.Организация предоставления общедоступного бесплатного дошкольного образования 2. Образовательная деятельность по образовательным программам дошкольного образования осуществляестя в группах. Группы могут иметь общеразвивающую компенсирующую, оздоровительную или комбинированную направленность. 3. В МБДОУ детский сад №11 \"Звездочка\" могут быть организованы группы по присмотру и уходу без реализации образовательной программы дошкольного образования в возрасте от 2 месяцев до 7 лет."]

{"sheet":"2","index":2,"n_rows":30,"n_cols":4,"rows_kept":30,"merged":[[0,0,1,3],[7,1,8,1],[7,3,8,3],[9,1,10,1],[9,3,10,3],[12,1,13,1],[12,3,13,3],[15,1,16,1],[15,3,16,3],[17,1,18,1],[17,3,18,3],[25,1,26,1],[25,3,26,3],[28,1,29,1],[28,3,29,3]]}
["2. Показатели финансового состояния учреждения  на 01.01.2017 г."]
[]
[{"$nulls":3},"                                                                                                                                                                               (последнюю отчетную дату)"]
[]
[null,"N п/п","Наименование показателя","Сумма,  руб."]
[null,1,2,3]
[null,1,"Нефинансовые активы, всего:",{"$f":"D8+D12","v":{"v":3581906.34,"d":"3,581,906.34"}}]
[null,"1.1","из них:",{"v":2147435.93,"d":"2,147,435.93"}]
[null,null,"недвижимое имущество, всего:"]
[null,"1.1.1","в том числе:"]
[null,null,"остаточная стоимость"]
[null,"1.2.","особо ценное движимое имущество, всего:",{"v":1434470.41,"d":"1,434,470.41"}]
[null,"1.2.1","в том числе:",{"v":20847.37,"d":"20,847.37"}]
[null,null,"остаточная стоимость"]
[null,"2","Финансовые активы, всего:",{"$f":"D16+D22+D23+D24","v":0}]
[null,"2.1","из них:"]
[null,null,"денежные средства учреждения, всего"]
[null,"2.1.1","в том числе:"]
[null,null,"денежные средства учреждения на счетах"]
[]
[null,"2.1.2","денежные средства учреждения, размещенные на депозиты в кредитной организации"]
[null,"2.2","иные финансовые инструменты"]
[null,"2.3","дебиторская задолженность по доходам"]
[null,"2.4","дебиторская задолженность по расходам"]
[null,"3","Обязательства, всего:",{"$f":"D26+D28","v":{"v":84257.96,"d":"84,257.96"}}]
[null,"3.1","из них:"]
[null,null,"долговые обязательства"]
[null,"3.2","кредиторская задолженность:",{"v":84257.96,"d":"84,257.96"}]
[null,"3.2.1","в том числе:"]
[null,null,"просроченная кредиторская задолженность"]

{"sheet":"3","index":3,"n_rows":56,"n_cols":10,"rows_kept":56,"merged":[[1,0,1,9],[3,0,6,0],[3,1,6,1],[3,2,6,2],[3,3,3,9],[4,3,6,3],[4,4,4,9],[5,4,6,4],[5,5,6,5],[5,6,6,6],[5,7,6,7],[5,8,5,9],[9,1,10,1],[9,2,10,2],[9,3,10,3],[9,4,10,4],[9,5,10,5],[9,6,10,6],[9,7,10,7],[9,8,10,8],[9,9,10,9],[22,1,23,1],[22,2,23,2],[22,3,23,3],[22,4,23,4],[22,5,23,5],[22,6,23,6],[22,7,23,7],[22,8,23,8],[22,9,23,9],[31,1,33,1],[31,2,33,2],[31,3,33,3],[31,4,33,4],[31,5,33,5],[31,6,33,6],[31,7,33,7],[31,8,33,8],[31,9,33,9],[47,1,48,1],[47,2,48,2],[47,3,48,3],[47,4,48,4],[47,5,48,5],[47,6,48,6],[47,7,48,7],[47,8,48,8],[47,9,48,9],[51,1,52,1],[51,2,52,2],[51,3,52,3],[51,4,52,4],[51,5,52,5],[51,6,52,6],[51,7,52,7],[51,8,52,8],[51,9,52,9]]}
[]
["3. Показатели по поступлениям и выплатам учреждения на 01 января2017 г."]
[]
["Наименование показателя","Код строки","Код по бюджетной классификации Российской Федерации","Объем финансового обеспечения, руб. (с точностью до двух знаков после запятой - 0,00)"]
[{"$nulls":3},"всего","в том числе:"]
[{"$nulls":4},"субсидия на финансовое обеспечение выполнения государственного (муниципального) задания","субсидии, предоставляемые в соответствии с абзацем вторым пункта 1 статьи 78.1 Бюджетного кодекса Российской Федерации","субсидии на осуществление капитальных вложений","средства обязательного медицинского страхования","поступления от оказания услуг (выполнения работ) на платной основе и от иной приносящей доход деятельности"]
[{"$nulls":8},"всего","из них гранты"]
[1,2,3,4,5,6,7,8,9,10]
["Поступления от доходов, всего:",100,"X",{"$f":"E9+F9+G9+H9+I9","v":{"v":6170900,"d":"6,170,900.00"}},{"$f":"E13","v":{"v":4063400,"d":"4,063,400.00"}},{"$f":"F21","v":{"v":1521400,"d":"1,521,400.00"}},null,{"$f":"H13","v":0},{"$f":"I10+I13+I15+I16+I19","v":{"v":586100,"d":"586,100.00"}}]
["в том числе:",110,null,{"$f":"I10","v":0},"X","X","X","X",null,"X"]
["доходы от собственности"]
[]
["доходы от оказания услуг, работ",120,null,{"$f":"E13+H13+I13","v":{"v":4649500,"d":"4,649,500.00"}},{"$f":"E21","v":{"v":4063400,"d":"4,063,400.00"}},"X","X",null,{"$f":"I21","v":{"v":586100,"d":"586,100.00"}}]
[]
["доходы от штрафов, пеней, иных сумм принудительного изъятия",130,null,{"$f":"I15","v":0},"X","X","X","X",null,"X"]
["безвозмездные поступления от наднациональных организаций, правительств иностранных государств, международных финансовых организаций",140,null,{"$f":"I16","v":0},"X","X","X","X",null,"X"]
["иные субсидии, предоставленные из бюджета",150,null,{"$f":"F17+G17","v":{"v":1521400,"d":"1,521,400.00"}},"X",{"$f":"F21","v":{"v":1521400,"d":"1,521,400.00"}},null,"X","X","X"]
["прочие доходы",160,null,{"$f":"I18","v":0},"X","X","X","X"]
["доходы от операций с активами",180,"X",{"$f":"I19","v":0},"X","X","X","X",null,"X"]
[]
["Выплаты по расходам, всего:",200,"X",{"$f":"E21+F21+G21+H21+I21","v":{"v":6170900,"d":"6,170,900.00"}},{"$f":"E22+E28+E30+E32+E36+E37","v":{"v":4063400,"d":"4,063,400.00"}},{"$f":"F22+F28+F30+F32+F36+F37","v":{"v":1521400,"d":"1,521,400.00"}},0,0,{"v":586100,"d":"586,100.00"}]
["в том числе на: выплаты персоналу всего:",210,null,{"$f":"SUM(E22:I22)","v":{"v":2338200,"d":"2,338,200.00"}},{"$f":"E25+E26+E27","v":{"v":2338200,"d":"2,338,200.00"}}]
["из них:",211,211.213,{"$f":"SUM(E23:I24)","v":{"v":2335100,"d":"2,335,100.00"}},{"$f":"E25+E27","v":{"v":2335100,"d":"2,335,100.00"}},{"$f":"F25+F27","v":0},0,0,0,0]
["оплата труда и начисления на выплаты по оплате труда"]
["заработная плата",212,211,{"$f":"SUM(E25:I25)","v":{"v":1793500,"d":"1,793,500.00"}},{"v":1793500,"d":"1,793,500.00"}]
["прочие выплаты",213,212,{"v":3100,"d":"3,100.00"},{"v":3100,"d":"3,100.00"}]
["начисления на выплаты по оплате труда",214,213,{"v":541600,"d":"541,600.00"},{"v":541600,"d":"541,600.00"}]
["социальные и иные выплаты населению, всего",220,null,{"$f":"SUM(E28:I28)","v":0}]
["из них:"]
["уплату налогов, сборов и иных платежей, всего",230,null,{"$f":"SUM(E30:I30)","v":0}]
["из них:"]
["безвозмездные",240,null,{"$f":"SUM(E32:I34)","v":0}]
["перечисления"]
["организациям"]
[]
["прочие расходы (кроме расходов на закупку товаров, работ, услуг)",250,null,{"$f":"SUM(E36:I36)","v":0}]
["расходы на закупку товаров, работ, услуг, всего",260,"X",{"$f":"SUM(E37:I37)","v":{"v":3832700,"d":"3,832,700.00"}},{"$f":"E38+E39+E40+E41+E42+E43+E44+E45+E46","v":{"v":1725200,"d":"1,725,200.00"}},{"$f":"F38+F39+F40+F41+F42+F43+F44+F45+F46","v":{"v":1521400,"d":"1,521,400.00"}},0,0,{"v":586100,"d":"586,100.00"},0]
["услуги связи",261,221,{"$f":"SUM(E38:I38)","v":{"v":39100,"d":"39,100.00"}},{"v":39000,"d":"39,000.00"},{"v":100,"d":"100.00"}]
["транспортные услуги",262,222,0]
["коммунальные услуги",263,223,{"v":691000,"d":"691,000.00"},{"v":691000,"d":"691,000.00"}]
["арендная плата за пользование имуществом",264,224,0]
["работы, услуги по содержанию имущества",265,225,{"v":336600,"d":"336,600.00"},{"v":333600,"d":"333,600.00"},{"v":3000,"d":"3,000.00"}]
["прочие работы, услуги",266,226,{"v":2622400,"d":"2,622,400.00"},{"v":518000,"d":"518,000.00"},{"v":1518300,"d":"1,518,300.00"},null,null,{"v":586100,"d":"586,100.00"}]
["прочие расходы",267,290,{"v":9100,"d":"9,100.00"},{"v":9100,"d":"9,100.00"}]
["увеличение стоимости основных средств ",268,310,{"v":30000,"d":"30,000.00"},{"v":30000,"d":"30,000.00"}]
["увеличение стоимости материальных запасов",269,340,{"v":104500,"d":"104,500.00"},{"v":104500,"d":"104,500.00"}]
["Поступление финансовых активов, всего:",300,"X",{"$f":"SUM(E47:I47)","v":0},{"$f":"E48+E50","v":0},{"$f":"F48+F50","v":0},0,0,0]
["из них:",310,null,{"$f":"SUM(E48:I49)","v":0}]
["увеличение остатков средств"]
["прочие поступления",320,null,{"$f":"SUM(E50:I50)","v":0}]
["Выбытие финансовых активов, всего",400,null,{"$f":"SUM(E51:I51)","v":0},{"$f":"E52+E54","v":0},{"$f":"F52+F54","v":0},0,0,0]
["Из них:",410,null,{"$f":"SUM(E52:I53)","v":0}]
["уменьшение остатков средств"]
["прочие выбытия",420,null,{"$f":"SUM(E54:I54)","v":0}]
["Остаток средств на начало года",500,"X",{"$f":"SUM(E55:I55)","v":0}]
["Остаток средств на конец года",600,"X",{"$f":"SUM(E56:I56)","v":0}]

{"sheet":"3.1","index":4,"n_rows":11,"n_cols":12,"rows_kept":11,"merged":[[0,0,0,11],[2,0,5,0],[2,1,5,1],[2,2,5,2],[2,3,2,11],[3,3,4,5],[3,6,3,11],[4,6,4,8],[4,9,4,11]]}
["3.1. Показатели выплат по расходам на закупку товаров, работ, услуг учреждения на 01 января2017 г."]
[]
["Наименование показателя","Код строки","Год начала закупки","Сумма выплат по расходам на закупку товаров, работ и услуг, руб. (с точностью до двух знаков после запятой - 0,00"]
[{"$nulls":3},"всего на закупки",null,null,"в том числе:"]
[{"$nulls":6},"в соответствии с Федеральным законом от 5 апреля 2013 г. N 44-ФЗ \"О контрактной системе в сфере закупок товаров, работ, услуг для обеспечения государственных и муниципальных нужд\"",null,null,"в соответствии с Федеральным законом от 18 июля 2011 г. N 223-ФЗ \"О закупках товаров, работ, услуг отдельными видами юридических лиц\""]
[{"$nulls":3},"на 2017 г. очередной финансовый год","на 20__ г. 1-ый год планового периода","на 20__ г. 2-ой год планового периода","на 2017г. очередной финансовый год","на 20__ г. 1-ый год планового периода","на 20__ г. 2-ой год планового периода","на 20__ г. очередной финансовый год","на 20__ г. 1-ый год планового периода","на 20__ г. 1-ый год планового периода"]
[1,2,3,4,5,6,7,8,9,10,11,12]
["Выплаты по расходам на закупку товаров, работ, услуг всего:",1,"X",{"$f":"G8","v":{"v":3751800,"d":"3,751,800.00"}},null,null,{"$f":"G11","v":{"v":3751800,"d":"3,751,800.00"}}]
["в том числе: на оплату контрактов заключенных до начала очередного финансового года:",1001,"X"]
[]
["на закупку товаров, работ, услуг по году начала закупки:",2001,null,{"$f":"G11","v":{"v":3751800,"d":"3,751,800.00"}},null,null,{"v":3751800,"d":"3,751,800.00"}]

{"sheet":"4","index":5,"n_rows":13,"n_cols":4,"rows_kept":13}
[]
[null,"                     Сведения о средствах, поступающих"]
[null,"            во временное распоряжение учреждения (подразделения)"]
[null,"                   на 01 января2017 г."]
[null,"                       (очередной финансовый год)"]
[]
[null,"Наименование показателя","Код строки","Сумма (руб., с точностью до двух знаков после запятой - 0,00)"]
[null,1,2,3]
[null,"Остаток средств на начало года",10,78298.16]
[null,"Остаток средств на конец года",20]
[null,"Поступление",30]
[]
[null,"Выбытие",40]

{"sheet":"5","index":6,"n_rows":9,"n_cols":4,"rows_kept":9,"merged":[[2,1,2,3]]}
[]
[]
[null,"Справочная информация"]
[]
[null,"Наименование показателя","Код строки","Сумма (руб.)"]
[null,1,2,3]
[null,"Объем публичных обязательств, всего:",10]
[null,"Объем бюджетных инвестиций (в части переданных полномочий государственного (муниципального) заказчика в соответствии с Бюджетным кодексом Российской Федерации), всего:",20,{"v":30000,"d":"30,000.00"}]
[null,"Объем средств, поступивших во временное распоряжение, всего:",30]